[Event "Championnat du monde jeunes U12"]
[Date "2024.11.22"]
[White "Park, Onyoo"]
[Black "Xia, Jinnan"]
[WhiteElo "1710"]
[BlackElo "1850"]
[Round "7.42"]
[Result "0-1"]
[TimeControl "5400+30"]

1. d4 {[%clk 1:30:57]} 1... Nf6 {[%clk 1:30:57]} 2. c4 {[%clk 1:31:23]} 2... e6
{[%clk 1:31:24]} 3. Nf3 {[%clk 1:31:49]} 3... d5 {[%clk 1:31:51]} 4. Nc3 {[%clk
1:32:10]} 4... Nbd7 {[%clk 1:32:17]} 5. Bf4 {[%clk 1:32:00]} 5... dxc4 {[%clk
1:32:43]} 6. e3 {[%clk 1:24:57]} 6... Nd5 {[%clk 1:32:53]} 7. Bxc4 {[%clk
1:14:26]} 7... Nxf4 {[%clk 1:33:09]} 8. exf4 {[%clk 1:14:50]} 8... Bd6 {[%clk
1:29:34]} 9. Ne5 {[%clk 1:12:23]} 9... O-O {[%clk 1:29:19]} 10. O-O {[%clk
1:11:17]} 10... Nf6 {[%clk 1:25:54]} 11. Qf3 {[%clk 1:05:40]} 11... c6 {[%clk
1:25:26]} 12. Bd3 {[%clk 0:56:50]} 12... Be7 {[%clk 1:22:05]} 13. Rfd1 {[%clk
0:54:30]} 13... Qb6 {[%clk 1:19:38]} 14. Nc4 {[%clk 0:52:58]} 14... Qc7 {[%clk
1:20:02]} 15. Rac1 {[%clk 0:39:37]} 15... Rd8 {[%clk 1:19:46]} 16. Bb1 {[%clk
0:38:54]} 16... Bd7 {[%clk 1:17:55]} 17. Ne5 {[%clk 0:29:25]} 17... Rac8 {[%clk
1:17:10]} 18. Ne4 {[%clk 0:26:54]} 18... Be8 {[%clk 1:13:02]} 19. f5 {[%clk
0:20:55]} 19... Nxe4 {[%clk 1:03:55]} 20. Bxe4 {[%clk 0:19:21]} 20... exf5
{[%clk 1:02:56]} 21. Bxf5 {[%clk 0:18:15]} 21... Ra8 {[%clk 1:02:44]} 22. Qb3
{[%clk 0:12:12]} 22... Bf6 {[%clk 1:00:13]} 23. Nf3 {[%clk 0:09:00]} 23... g6
{[%clk 1:00:29]} 24. Bh3 {[%clk 0:06:49]} 24... Qb6 {[%clk 0:59:59]} 25. Qxb6
{[%clk 0:03:56]} 25... axb6 {[%clk 1:00:25]} 26. a3 {[%clk 0:04:15]} 26... Ra4
{[%clk 0:59:00]} 27. Kf1 {[%clk 0:03:35]} 27... h5 {[%clk 0:57:39]} 28. Ke2
{[%clk 0:00:55]} 28... g5 {[%clk 0:57:44]} 29. g4 {[%clk 0:00:44]} 29... Bd7
{[%clk 0:57:43]} 30. Rg1 {[%clk 0:00:34]} 30... Be6 {[%clk 0:57:36]} 0-1

[Variant "Standard"]
[Site "Europe Echecs"]

[Event "Championnat du monde jeunes U12"]
[Date "2024.11.22"]
[White "Anagnostopoulos, Panagiotis"]
[Black "Miransh Vyas"]
[WhiteElo "1848"]
[BlackElo "1705"]
[Round "7.43"]
[Result "0-1"]
[TimeControl "5400+30"]

1. Nf3 {[%clk 1:30:53]} 1... d5 {[%clk 1:29:54]} 2. g3 {[%clk 1:31:04]} 2... Nf6
{[%clk 1:30:16]} 3. Bg2 {[%clk 1:31:26]} 3... e6 {[%clk 1:30:39]} 4. c4 {[%clk
1:31:29]} 4... Be7 {[%clk 1:30:36]} 5. O-O {[%clk 1:31:15]} 5... O-O {[%clk
1:30:58]} 6. b3 {[%clk 1:31:38]} 6... b6 {[%clk 1:30:22]} 7. cxd5 {[%clk
1:31:41]} 7... exd5 {[%clk 1:29:23]} 8. Bb2 {[%clk 1:31:51]} 8... Bb7 {[%clk
1:28:27]} 9. e3 {[%clk 1:32:06]} 9... Nbd7 {[%clk 1:22:11]} 10. d4 {[%clk
1:28:49]} 10... Bd6 {[%clk 1:12:30]} 11. Nc3 {[%clk 1:24:05]} 11... a6 {[%clk
1:07:01]} 12. Ne2 {[%clk 1:19:36]} 12... Qe7 {[%clk 1:02:57]} 13. Rc1 {[%clk
1:16:25]} 13... Ne4 {[%clk 0:59:49]} 14. Nf4 {[%clk 1:13:26]} 14... a5 {[%clk
0:39:57]} 15. a4 {[%clk 1:08:14]} 15... Rfb8 {[%clk 0:24:40]} 16. Qc2 {[%clk
1:01:46]} 16... Ndf6 {[%clk 0:18:11]} 17. Nd3 {[%clk 0:57:31]} 17... Ba6 {[%clk
0:16:11]} 18. Bh3 {[%clk 0:52:24]} 18... c5 {[%clk 0:09:47]} 19. Rfd1 {[%clk
0:49:05]} 19... Bxd3 {[%clk 0:05:53]} 20. Qxd3 {[%clk 0:47:45]} 20... h5 {[%clk
0:03:12]} 21. Ne5 {[%clk 0:44:16]} 21... Bxe5 {[%clk 0:01:56]} 22. dxe5 {[%clk
0:44:32]} 22... Ng4 {[%clk 0:02:08]} 23. Bxg4 {[%clk 0:44:32]} 23... hxg4 {[%clk
0:02:30]} 24. Qxd5 {[%clk 0:44:18]} 24... Ng5 {[%clk 0:02:17]} 25. Qc4 {[%clk
0:41:07]} 25... Nf3+ {[%clk 0:02:17]} 26. Kg2 {[%clk 0:41:09]} 26... Qg5 {[%clk
0:01:16]} 27. h4 {[%clk 0:39:56]} 27... Qf5 {[%clk 0:01:19]} 28. Qf4 {[%clk
0:39:49]} 28... Qe6 {[%clk 0:01:21]} 29. Bc3 {[%clk 0:38:38]} 29... Rd8 {[%clk
0:01:07]} 30. Rd6 {[%clk 0:37:42]} 30... Rxd6 {[%clk 0:01:23]} 31. exd6 {[%clk
0:38:08]} 31... Rd8 {[%clk 0:01:34]} 32. Rd1 {[%clk 0:36:29]} 32... Qxb3 {[%clk
0:01:10]} 33. Qxg4 {[%clk 0:36:21]} 33... Qxc3 {[%clk 0:01:10]} 34. Qxf3 {[%clk
0:36:34]} 34... Qb3 {[%clk 0:00:59]} 35. Qg4 {[%clk 0:36:09]} 35... Qe6 {[%clk
0:00:36]} 36. Qf4 {[%clk 0:35:38]} 36... Qb3 {[%clk 0:00:53]} 37. Rd2 {[%clk
0:35:16]} 37... c4 {[%clk 0:01:02]} 38. d7 {[%clk 0:35:09]} 38... c3 {[%clk
0:00:58]} 39. Rd3 {[%clk 0:34:59]} 39... Qe6 {[%clk 0:00:33]} 40. Rd6 {[%clk
0:34:27]} 40... Qe7 {[%clk 0:00:40]} 41. Rc6 {[%clk 0:33:57]} 41... Qxd7 {[%clk
0:00:49]} 42. Rxc3 {[%clk 0:34:15]} 42... Qd5+ {[%clk 0:00:55]} 43. Kh2 {[%clk
0:34:27]} 43... Rd6 {[%clk 0:00:50]} 44. Rc7 {[%clk 0:33:09]} 44... Rf6 {[%clk
0:00:48]} 45. e4 {[%clk 0:32:13]} 45... Qd4 {[%clk 0:00:49]} 46. Qe3 {[%clk
0:31:50]} 46... Rxf2+ {[%clk 0:01:09]} 47. Qxf2 {[%clk 0:31:58]} 47... Qxf2+
{[%clk 0:01:31]} 48. Kh3 {[%clk 0:32:17]} 48... Qd4 {[%clk 0:01:54]} 49. Rc8+
{[%clk 0:31:10]} 49... Kh7 {[%clk 0:02:17]} 50. Rb8 {[%clk 0:31:39]} 50... Qxe4
{[%clk 0:02:33]} 51. Rxb6 {[%clk 0:32:06]} 51... Qxa4 {[%clk 0:02:48]} 52. h5
{[%clk 0:32:32]} 52... Qb4 {[%clk 0:02:56]} 53. Ra6 {[%clk 0:32:41]} 53... Qb5
{[%clk 0:03:06]} 0-1

[Variant "Standard"]
[Site "Europe Echecs"]

[Event "Championnat du monde jeunes U12"]
[Date "2024.11.22"]
[White "Kraucenka, Justas"]
[Black "Berdashkevich, Makar"]
[WhiteElo "1650"]
[BlackElo "1848"]
[Round "7.44"]
[Result "0-1"]
[TimeControl "5400+30"]

1. d4 {[%clk 1:30:59]} 1... Nf6 {[%clk 1:30:29]} 2. Nf3 {[%clk 1:31:20]} 2... e6
{[%clk 1:30:38]} 3. Bf4 {[%clk 1:31:46]} 3... c5 {[%clk 1:30:00]} 4. e3 {[%clk
1:32:10]} 4... Nc6 {[%clk 1:28:34]} 5. Nbd2 {[%clk 1:32:19]} 5... d5 {[%clk
1:28:05]} 6. c3 {[%clk 1:32:18]} 6... Nh5 {[%clk 1:27:24]} 7. Bg5 {[%clk
1:32:19]} 7... Qb6 {[%clk 1:24:55]} 8. Rb1 {[%clk 1:31:35]} 8... h6 {[%clk
1:19:38]} 9. Bh4 {[%clk 1:31:58]} 9... g5 {[%clk 1:16:36]} 10. Bg3 {[%clk
1:32:25]} 10... Nxg3 {[%clk 1:16:20]} 11. hxg3 {[%clk 1:32:50]} 11... Bg7 {[%clk
1:16:30]} 12. Bd3 {[%clk 1:33:08]} 12... Bd7 {[%clk 1:15:32]} 13. Qe2 {[%clk
1:30:46]} 13... O-O-O {[%clk 1:07:03]} 14. O-O {[%clk 1:29:03]} 14... f5 {[%clk
0:58:08]} 15. b4 {[%clk 1:25:44]} 15... c4 {[%clk 0:54:21]} 16. Bc2 {[%clk
1:22:36]} 16... Qc7 {[%clk 0:46:13]} 17. b5 {[%clk 1:09:32]} 17... Ne7 {[%clk
0:45:19]} 18. Rfe1 {[%clk 1:06:08]} 18... Qd6 {[%clk 0:40:48]} 19. Rb4 {[%clk
0:59:24]} 19... Bf6 {[%clk 0:36:00]} 20. Kf1 {[%clk 0:53:43]} 20... h5 {[%clk
0:31:05]} 21. Reb1 {[%clk 0:44:01]} 21... h4 {[%clk 0:28:18]} 22. gxh4 {[%clk
0:44:21]} 22... g4 {[%clk 0:26:13]} 23. Ng1 {[%clk 0:33:13]} 23... Rxh4 {[%clk
0:25:44]} 24. g3 {[%clk 0:32:39]} 24... Rh1 {[%clk 0:24:31]} 25. Re1 {[%clk
0:27:07]} 25... Bg5 {[%clk 0:15:10]} 26. Qd1 {[%clk 0:24:41]} 26... Rh2 {[%clk
0:14:27]} 27. a4 {[%clk 0:17:53]} 27... Rdh8 {[%clk 0:14:25]} 28. Qc1 {[%clk
0:17:37]} 28... Rxf2+ {[%clk 0:10:07]} 29. Kxf2 {[%clk 0:18:00]} 29... Rh2+
{[%clk 0:10:33]} 30. Kf1 {[%clk 0:18:22]} 30... Qxg3 {[%clk 0:10:52]} 31. Re2
{[%clk 0:17:31]} 31... Bxe3 {[%clk 0:11:02]} 32. Rxh2 {[%clk 0:16:14]} 32...
Qxg1+ {[%clk 0:11:23]} 33. Ke2 {[%clk 0:16:42]} 33... Qxc1 {[%clk 0:10:55]} 34.
Kxe3 {[%clk 0:17:05]} 34... Qg1+ {[%clk 0:11:19]} 35. Rf2 {[%clk 0:15:59]} 35...
g3 {[%clk 0:11:46]} 36. Kf4 {[%clk 0:15:53]} 36... gxf2 {[%clk 0:12:03]} 37. Rb1
{[%clk 0:16:15]} 37... Ng6+ {[%clk 0:12:19]} 38. Kf3 {[%clk 0:16:28]} 38... Nh4+
{[%clk 0:12:14]} 39. Ke2 {[%clk 0:16:31]} 39... Be8 {[%clk 0:12:26]} 40. Rf1
{[%clk 0:16:24]} 40... Bh5+ {[%clk 0:12:47]} 41. Ke3 {[%clk 0:16:49]} 41... Ng2#
{[%clk 0:13:00]} 0-1

[Variant "Standard"]
[Site "Europe Echecs"]

[Event "Championnat du monde jeunes U12"]
[Date "2024.11.22"]
[White "Farzaleev, Daniyar"]
[Black "Petrovski, Nikola"]
[WhiteElo "1622"]
[BlackElo "1829"]
[Round "7.45"]
[Result "1/2-1/2"]
[TimeControl "5400+30"]

1. e4 {[%clk 1:30:58]} 1... e5 {[%clk 1:30:22]} 2. Nf3 {[%clk 1:31:24]} 2... Nc6
{[%clk 1:30:41]} 3. Bb5 {[%clk 1:31:50]} 3... g6 {[%clk 1:30:56]} 4. O-O {[%clk
1:32:10]} 4... Bg7 {[%clk 1:31:16]} 5. c3 {[%clk 1:32:32]} 5... Nge7 {[%clk
1:31:25]} 6. d4 {[%clk 1:32:40]} 6... a6 {[%clk 1:24:30]} 7. Ba4 {[%clk
1:31:20]} 7... b5 {[%clk 1:20:45]} 8. Bc2 {[%clk 1:31:43]} 8... d6 {[%clk
1:19:21]} 9. h3 {[%clk 1:30:52]} 9... O-O {[%clk 1:18:36]} 10. Be3 {[%clk
1:26:14]} 10... Bb7 {[%clk 1:17:23]} 11. dxe5 {[%clk 1:23:58]} 11... Nxe5 {[%clk
1:16:42]} 12. Nxe5 {[%clk 1:24:16]} 12... dxe5 {[%clk 1:17:06]} 13. Qxd8 {[%clk
1:20:51]} 13... Raxd8 {[%clk 1:14:15]} 14. Nd2 {[%clk 1:21:01]} 14... Nc8 {[%clk
1:04:41]} 15. Nb3 {[%clk 1:19:54]} 15... Nd6 {[%clk 1:01:04]} 16. Nc5 {[%clk
1:20:06]} 16... Ra8 {[%clk 0:57:34]} 17. Nxb7 {[%clk 1:18:11]} 17... Nxb7 {[%clk
0:57:52]} 18. Bb3 {[%clk 1:18:34]} 18... Nd6 {[%clk 0:55:08]} 19. f3 {[%clk
1:14:47]} 19... Nc4 {[%clk 0:51:46]} 20. Bxc4 {[%clk 1:15:08]} 20... bxc4 {[%clk
0:52:05]} 21. Rad1 {[%clk 1:11:50]} 21... Rfd8 {[%clk 0:46:20]} 22. Kf2 {[%clk
1:08:31]} 22... h5 23. Ke2 {[%clk 1:07:13]} 23... Bf8 {[%clk 0:37:59]} 24. Rxd8
{[%clk 1:02:44]} 24... Rxd8 {[%clk 0:38:21]} 25. Rd1 {[%clk 1:03:10]} 25... Rb8
{[%clk 0:37:59]} 26. Bc1 {[%clk 1:03:25]} 26... Bd6 {[%clk 0:36:03]} 27. Rd5
{[%clk 0:59:38]} 27... Rb5 {[%clk 0:32:28]} 28. Rxb5 {[%clk 0:54:46]} 28... axb5
{[%clk 0:32:54]} 29. b3 {[%clk 0:54:31]} 29... cxb3 {[%clk 0:33:10]} 30. axb3
{[%clk 0:55:00]} 30... f6 {[%clk 0:31:01]} 31. Kd3 {[%clk 0:55:10]} 31... Kf7
{[%clk 0:30:15]} 32. Be3 {[%clk 0:55:09]} 32... Ke6 {[%clk 0:29:58]} 33. c4
{[%clk 0:54:48]} 33... c6 {[%clk 0:28:14]} 1/2-1/2

[Variant "Standard"]
[Site "Europe Echecs"]

[Event "Championnat du monde jeunes U12"]
[Date "2024.11.22"]
[White "Nicot, Valentin"]
[Black "Leht, Karl Samuel"]
[WhiteElo "2078"]
[BlackElo "1701"]
[Round "7.47"]
[Result "1-0"]
[TimeControl "5400+30"]

1. e4 {[%clk 1:30:41]} 1... e5 {[%clk 1:30:57]} 2. Nf3 {[%clk 1:31:00]} 2... Nc6
{[%clk 1:31:26]} 3. d4 {[%clk 1:31:08]} 3... exd4 {[%clk 1:31:53]} 4. Nxd4
{[%clk 1:31:31]} 4... Qf6 {[%clk 1:32:22]} 5. Nxc6 {[%clk 1:31:10]} 5... Bc5
{[%clk 1:30:34]} 6. Qf3 {[%clk 1:31:10]} 6... dxc6 {[%clk 1:30:41]} 7. Nc3
{[%clk 1:29:10]} 7... Be6 {[%clk 1:29:30]} 8. Qxf6 {[%clk 1:21:36]} 8... Nxf6
{[%clk 1:29:49]} 9. f3 {[%clk 1:21:56]} 9... O-O-O {[%clk 1:28:30]} 10. Bd3
{[%clk 1:19:36]} 10... Rhe8 {[%clk 1:23:41]} 11. Bg5 {[%clk 1:16:58]} 11... h6
{[%clk 1:22:42]} 12. Bh4 {[%clk 1:17:16]} 12... g5 {[%clk 1:21:26]} 13. Bf2
{[%clk 1:17:40]} 13... Bxf2+ {[%clk 1:19:19]} 14. Kxf2 {[%clk 1:18:09]} 14...
Nd7 {[%clk 1:13:25]} 15. Rad1 {[%clk 1:11:13]} 15... Nc5 {[%clk 1:12:18]} 16. h4
{[%clk 1:07:27]} 16... Nxd3+ {[%clk 1:11:23]} 17. Rxd3 {[%clk 1:07:14]} 17... f5
{[%clk 1:06:49]} 18. hxg5 {[%clk 0:58:31]} 18... hxg5 {[%clk 1:04:46]} 19. Rhd1
{[%clk 0:53:25]} 19... Rxd3 {[%clk 1:00:40]} 20. Rxd3 {[%clk 0:52:56]} 20...
fxe4 {[%clk 1:00:40]} 21. Nxe4 {[%clk 0:53:00]} 21... Bf5 {[%clk 0:54:15]} 22.
Re3 {[%clk 0:53:20]} 22... Bxe4 {[%clk 0:52:47]} 23. Rxe4 {[%clk 0:53:49]} 23...
Rd8 {[%clk 0:52:57]} 24. Ke2 {[%clk 0:53:32]} 24... Rd5 {[%clk 0:53:05]} 25. g3
{[%clk 0:51:31]} 25... Kd7 {[%clk 0:48:22]} 26. Ke3 {[%clk 0:48:51]} 26... c5
{[%clk 0:48:23]} 27. Ke2 {[%clk 0:44:54]} 27... Rf5 {[%clk 0:38:35]} 28. c4
{[%clk 0:44:06]} 28... Kd6 {[%clk 0:34:26]} 29. Ke3 {[%clk 0:43:20]} 29... b6
{[%clk 0:32:10]} 30. Re8 {[%clk 0:41:53]} 30... Rf7 {[%clk 0:26:05]} 31. Ke4
{[%clk 0:26:59]} 31... Rg7 {[%clk 0:16:58]} 32. Kf5 {[%clk 0:26:48]} 32... Rf7+
{[%clk 0:15:29]} 33. Kg4 {[%clk 0:27:08]} 33... Rg7 {[%clk 0:15:12]} 34. Re3
{[%clk 0:24:51]} 34... c6 {[%clk 0:15:15]} 35. Kf5 {[%clk 0:25:03]} 35... g4
{[%clk 0:10:43]} 36. f4 {[%clk 0:25:09]} 36... b5 {[%clk 0:09:46]} 37. b3 {[%clk
0:24:25]} 37... bxc4 {[%clk 0:07:25]} 38. bxc4 {[%clk 0:24:54]} 38... Kc7 {[%clk
0:07:26]} 39. Kf6 {[%clk 0:25:07]} 39... Rg8 {[%clk 0:07:33]} 40. Kf7 {[%clk
0:24:51]} 40... Rd8 {[%clk 0:07:50]} 41. f5 {[%clk 0:22:19]} 1-0

[Variant "Standard"]
[Site "Europe Echecs"]

[Event "Championnat du monde jeunes U12"]
[Date "2024.11.22"]
[White "Su, Jayden Chenxuan"]
[Black "El Zein, Bassam"]
[WhiteElo "1700"]
[BlackElo "1947"]
[Round "7.48"]
[Result "0-1"]
[TimeControl "5400+30"]

1. d4 {[%clk 1:30:53]} 1... d5 {[%clk 1:30:55]} 2. c4 {[%clk 1:31:15]} 2... Nc6
{[%clk 1:31:22]} 3. cxd5 {[%clk 1:31:14]} 3... Qxd5 {[%clk 1:31:50]} 4. e3
{[%clk 1:29:37]} 4... e5 {[%clk 1:32:18]} 5. Nc3 {[%clk 1:29:16]} 5... Bb4
{[%clk 1:32:46]} 6. a3 {[%clk 1:27:28]} 6... Bxc3+ {[%clk 1:33:03]} 7. bxc3
{[%clk 1:27:38]} 7... Nf6 {[%clk 1:33:26]} 8. Ne2 {[%clk 1:17:03]} 8... Be6
{[%clk 1:31:13]} 9. Ng3 {[%clk 1:16:40]} 9... Qd6 {[%clk 1:24:33]} 10. Be2
{[%clk 1:13:01]} 10... exd4 {[%clk 1:23:41]} 11. cxd4 {[%clk 1:10:08]} 11...
O-O-O {[%clk 1:22:08]} 12. Bd2 {[%clk 1:08:38]} 12... h5 {[%clk 1:22:03]} 13.
Nxh5 {[%clk 0:57:10]} 13... Nxh5 {[%clk 1:21:17]} 14. Bxh5 {[%clk 0:57:21]}
14... g6 {[%clk 1:21:40]} 15. Bf3 {[%clk 0:54:58]} 15... Rxh2 {[%clk 1:21:58]}
16. Rxh2 {[%clk 0:54:35]} 16... Qxh2 {[%clk 1:22:27]} 17. Qe2 {[%clk 0:52:23]}
17... Rh8 {[%clk 1:22:12]} 18. g3 {[%clk 0:49:29]} 18... Re8 {[%clk 1:15:42]}
19. Bc3 {[%clk 0:44:09]} 19... Nd8 {[%clk 1:12:11]} 20. Kd2 {[%clk 0:42:45]}
20... Qh6 {[%clk 1:12:12]} 21. Rh1 {[%clk 0:42:03]} 21... Qg5 {[%clk 1:12:14]}
22. Rc1 {[%clk 0:39:06]} 22... Re7 {[%clk 1:11:52]} 23. Bb4 {[%clk 0:37:31]}
23... Rd7 {[%clk 1:11:52]} 24. Rc5 {[%clk 0:36:30]} 24... Qh6 {[%clk 1:10:08]}
25. Ke1 {[%clk 0:31:53]} 25... c6 {[%clk 1:08:35]} 26. Qc2 {[%clk 0:29:51]}
26... Kb8 {[%clk 1:04:46]} 27. d5 {[%clk 0:27:55]} 27... Bxd5 {[%clk 1:03:25]}
28. Bxd5 {[%clk 0:26:46]} 28... Rxd5 {[%clk 1:03:49]} 29. Rxd5 {[%clk 0:26:43]}
29... Qh1+ {[%clk 1:04:17]} 30. Ke2 {[%clk 0:26:49]} 30... Qxd5 {[%clk 1:04:44]}
31. Qb2 {[%clk 0:23:50]} 31... c5 {[%clk 1:04:07]} 32. Bc3 {[%clk 0:23:53]}
32... Ne6 {[%clk 1:03:52]} 33. Qb5 {[%clk 0:21:46]} 33... a6 {[%clk 1:03:48]}
34. Qb2 {[%clk 0:20:30]} 34... b5 {[%clk 1:03:08]} 35. Kf1 {[%clk 0:20:05]}
35... Ng5 {[%clk 1:03:09]} 36. Be5+ {[%clk 0:19:43]} 36... Kb7 {[%clk 1:03:11]}
37. Bf4 {[%clk 0:19:42]} 37... Ne4 {[%clk 1:02:14]} 38. Ke2 {[%clk 0:19:23]}
38... c4 {[%clk 1:01:52]} 39. Be5 {[%clk 0:19:20]} 39... Qd3+ {[%clk 1:02:13]}
40. Ke1 {[%clk 0:19:16]} 40... Ng5 {[%clk 1:02:04]} 41. Qe2 {[%clk 0:19:11]}
41... Qb1+ {[%clk 1:02:31]} 42. Qd1 {[%clk 0:19:17]} 42... Nf3+ {[%clk 1:03:00]}
43. Ke2 {[%clk 0:19:33]} 43... Qxd1+ {[%clk 1:03:26]} 44. Kxd1 {[%clk 0:19:56]}
44... Nxe5 {[%clk 1:03:56]} 45. Kc2 {[%clk 0:20:06]} 45... a5 {[%clk 1:04:12]}
46. Kb2 {[%clk 0:20:29]} 46... Nd3+ {[%clk 1:04:37]} 47. Kc2 {[%clk 0:20:57]}
47... Nxf2 {[%clk 1:05:03]} 48. Kc3 {[%clk 0:21:24]} 48... Ne4+ {[%clk 1:05:28]}
49. Kc2 {[%clk 0:21:52]} 49... Nxg3 {[%clk 1:05:53]} 50. a4 {[%clk 0:22:18]}
50... b4 {[%clk 1:06:20]} 51. Kb2 {[%clk 0:22:44]} 51... Nf5 {[%clk 1:06:44]}
52. e4 {[%clk 0:23:11]} 52... c3+ {[%clk 1:07:11]} 53. Kc2 {[%clk 0:23:30]}
53... Nd4+ {[%clk 1:07:39]} 54. Kb1 {[%clk 0:23:46]} 54... b3 {[%clk 1:08:03]}
55. Kc1 {[%clk 0:24:12]} 55... Ne2+ {[%clk 1:08:29]} 56. Kb1 {[%clk 0:24:31]}
56... Kc6 {[%clk 1:08:49]} 0-1

[Variant "Standard"]
[Site "Europe Echecs"]

[Event "Championnat du monde jeunes U12"]
[Date "2024.11.22"]
[White "Isakov, Amin"]
[Black "Dos Santos, Leonardo Lopes"]
[WhiteElo "1698"]
[BlackElo "1930"]
[Round "7.49"]
[Result "1-0"]
[TimeControl "5400+30"]

1. c4 {[%clk 1:30:40]} 1... c6 {[%clk 1:29:15]} 2. d4 {[%clk 1:28:37]} 2... d5
{[%clk 1:29:40]} 3. Nf3 {[%clk 1:27:36]} 3... Nf6 {[%clk 1:30:02]} 4. Nc3 {[%clk
1:24:34]} 4... e6 {[%clk 1:30:08]} 5. Bg5 {[%clk 1:23:53]} 5... Be7 {[%clk
1:28:44]} 6. e3 {[%clk 1:23:54]} 6... Nbd7 {[%clk 1:27:33]} 7. Bd3 {[%clk
1:23:23]} 7... O-O {[%clk 1:25:54]} 8. O-O {[%clk 1:23:14]} 8... dxc4 {[%clk
1:15:12]} 9. Bxc4 {[%clk 1:22:46]} 9... c5 {[%clk 1:15:09]} 10. Qe2 {[%clk
1:21:33]} 10... cxd4 {[%clk 1:07:32]} 11. Nxd4 {[%clk 1:21:15]} 11... Nb6 {[%clk
1:02:48]} 12. Rfd1 {[%clk 1:16:24]} 12... Qc7 {[%clk 1:02:30]} 13. Bb3 {[%clk
1:12:50]} 13... Bd7 {[%clk 0:50:10]} 14. Rac1 {[%clk 0:54:58]} 14... Rac8 {[%clk
0:42:18]} 15. e4 {[%clk 0:51:07]} 15... h6 {[%clk 0:29:40]} 16. Nd5 {[%clk
0:39:56]} 16... Qd8 {[%clk 0:29:58]} 17. Rxc8 {[%clk 0:39:40]} 17... Nxc8 {[%clk
0:29:12]} 18. Nxf6+ {[%clk 0:39:46]} 18... Bxf6 {[%clk 0:29:24]} 19. Nxe6 {[%clk
0:39:50]} 19... fxe6 {[%clk 0:28:53]} 20. Bxe6+ {[%clk 0:40:07]} 20... Kh8
{[%clk 0:29:12]} 21. Rxd7 {[%clk 0:40:11]} 21... Qe8 {[%clk 0:28:07]} 22. Bxf6
{[%clk 0:40:25]} 22... Rxf6 {[%clk 0:28:33]} 23. Bg4 {[%clk 0:39:57]} 23... Kh7
{[%clk 0:27:38]} 24. Qd3 {[%clk 0:39:29]} 24... Qe5 {[%clk 0:23:40]} 25. Bf5+
{[%clk 0:39:28]} 1-0

[Variant "Standard"]
[Site "Europe Echecs"]

[Event "Championnat du monde jeunes U12"]
[Date "2024.11.22"]
[White "Fadeev, Justin Michael"]
[Black "Boiko, Nazar"]
[WhiteElo "1878"]
[BlackElo "1614"]
[Round "7.50"]
[Result "1-0"]
[TimeControl "5400+30"]

1. e4 {[%clk 1:30:56]} 1... e6 {[%clk 1:30:56]} 2. d4 {[%clk 1:31:22]} 2... d5
{[%clk 1:31:23]} 3. Nd2 {[%clk 1:31:47]} 3... Nc6 {[%clk 1:31:47]} 4. Ngf3
{[%clk 1:32:00]} 4... Nf6 {[%clk 1:32:09]} 5. e5 {[%clk 1:32:24]} 5... Nd7
{[%clk 1:32:35]} 6. Bd3 {[%clk 1:32:41]} 6... Nb4 {[%clk 1:32:56]} 7. Be2 {[%clk
1:30:05]} 7... c5 {[%clk 1:33:12]} 8. c3 {[%clk 1:29:50]} 8... Nc6 {[%clk
1:33:35]} 9. O-O {[%clk 1:28:47]} 9... Be7 {[%clk 1:33:04]} 10. Re1 {[%clk
1:27:31]} 10... O-O {[%clk 1:30:34]} 11. Nf1 {[%clk 1:26:01]} 11... cxd4 {[%clk
1:16:47]} 12. cxd4 {[%clk 1:26:10]} 12... f6 {[%clk 0:59:30]} 13. exf6 {[%clk
1:06:21]} 13... Bxf6 {[%clk 0:37:01]} 14. Be3 {[%clk 0:59:09]} 14... Re8 {[%clk
0:24:41]} 15. Qd2 {[%clk 0:51:32]} 15... e5 {[%clk 0:13:20]} 16. dxe5 {[%clk
0:50:09]} 16... Ndxe5 {[%clk 0:11:09]} 17. Rad1 {[%clk 0:41:07]} 17... Be6
{[%clk 0:09:01]} 18. Ng5 {[%clk 0:36:38]} 18... Nc4 {[%clk 0:07:38]} 19. Bxc4
{[%clk 0:33:57]} 19... dxc4 {[%clk 0:07:56]} 20. Qc2 {[%clk 0:34:18]} 20... Qc8
{[%clk 0:05:20]} 21. Qxh7+ {[%clk 0:34:12]} 21... Kf8 {[%clk 0:05:40]} 22. Bc5+
{[%clk 0:34:19]} 1-0

[Variant "Standard"]
[Site "Europe Echecs"]

[Event "Championnat du monde jeunes U12"]
[Date "2024.11.22"]
[White "Konstantinides, Savvas"]
[Black "Mamarasulov, Husan"]
[WhiteElo "1839"]
[BlackElo "1407"]
[Round "7.51"]
[Result "1-0"]
[TimeControl "5400+30"]

1. e4 {[%clk 1:30:55]} 1... c5 {[%clk 1:30:37]} 2. Nf3 {[%clk 1:30:37]} 2... Nc6
{[%clk 1:30:30]} 3. d4 {[%clk 1:30:34]} 3... cxd4 {[%clk 1:30:36]} 4. Nxd4
{[%clk 1:30:58]} 4... e5 {[%clk 1:30:42]} 5. Nb5 {[%clk 1:31:20]} 5... d6 {[%clk
1:30:54]} 6. N1c3 {[%clk 1:31:42]} 6... a6 {[%clk 1:31:11]} 7. Na3 {[%clk
1:32:00]} 7... Be6 {[%clk 1:31:24]} 8. Nc4 {[%clk 1:32:15]} 8... Rb8 {[%clk
1:31:45]} 9. Be3 {[%clk 1:27:10]} 9... b5 {[%clk 1:27:08]} 10. Nb6 {[%clk
1:27:32]} 10... Rxb6 {[%clk 1:25:48]} 11. Bxb6 {[%clk 1:26:10]} 11... Qxb6
{[%clk 1:26:05]} 12. a4 {[%clk 1:26:05]} 12... b4 {[%clk 1:23:19]} 13. a5 {[%clk
1:22:32]} 13... Qd4 {[%clk 1:10:18]} 14. Ra4 {[%clk 1:14:37]} 14... Qxd1+ {[%clk
1:02:01]} 15. Nxd1 {[%clk 1:13:32]} 15... Nd4 {[%clk 1:00:22]} 16. Ne3 {[%clk
1:12:50]} 16... b3 {[%clk 0:44:05]} 17. c3 {[%clk 1:11:14]} 17... Bd7 {[%clk
0:37:18]} 18. Rb4 {[%clk 1:10:44]} 18... Nc6 {[%clk 0:33:09]} 19. Rb6 {[%clk
1:09:38]} 19... Nxa5 {[%clk 0:29:49]} 20. Rb8+ {[%clk 1:09:03]} 20... Ke7 {[%clk
0:29:12]} 21. Nd5+ {[%clk 1:08:42]} 21... Ke6 {[%clk 0:29:41]} 22. Rxf8 {[%clk
1:08:29]} 22... f5 {[%clk 0:20:32]} 23. f3 {[%clk 1:08:20]} 23... Bb5 {[%clk
0:16:36]} 24. Bxb5 {[%clk 1:07:29]} 24... axb5 {[%clk 0:17:02]} 25. O-O {[%clk
1:07:23]} 25... Nc4 26. Ra1 {[%clk 1:07:15]} 26... Nxb2 {[%clk 0:14:47]} 27. Ra7
{[%clk 1:06:06]} 27... fxe4 {[%clk 0:14:26]} 28. fxe4 {[%clk 1:05:47]} 28... Nc4
{[%clk 0:12:07]} 29. Re8+ {[%clk 1:06:10]} 29... Ne7 {[%clk 0:10:50]} 30. Raxe7#
{[%clk 1:06:02]} 1-0

[Variant "Standard"]
[Site "Europe Echecs"]